bitfinex/quotes_BTCUSD_20250316
["timestamp","ask_amount","ask_price","bid_price","bid_amount"]
[1742085612582,0.0307626,84514.0,84513.0,0.0001694]
[1742085612785,0.0307626,84514.0,84513.0,0.0011694]
[1742085616303,0.01221229,84514.0,84513.0,0.0011694]
[1742085622419,0.44291229,84514.0,84513.0,0.0011694]
[1742085623422,0.44291229,84514.0,84513.0,0.0001694]
[1742085623423,0.46146391,84514.0,84513.0,0.0001694]
[1742085623627,0.41326391,84514.0,84513.0,0.0001694]
[1742085623944,0.33076391,84514.0,84513.0,0.0001694]
[1742085629040,0.31221229,84514.0,84513.0,0.0001694]
[1742085629245,0.31221229,84514.0,84513.0,0.00761622]
[1742085629443,0.31221229,84514.0,84513.0,0.0001694]
[1742085629849,0.31221229,84514.0,84513.0,0.00761622]
[1742085631213,0.31221229,84514.0,84513.0,0.0001694]
[1742085632550,0.33076362,84514.0,84513.0,0.0001694]
[1742085633800,0.33076362,84514.0,84513.0,0.00966443]
[1742085634034,0.33076362,84514.0,84513.0,0.0001694]
[1742085634260,0.33076362,84514.0,84513.0,0.00966443]
[1742085634471,0.33076362,84514.0,84513.0,0.0001694]
[1742085634892,0.33076362,84514.0,84513.0,0.00966443]
[1742085637932,0.01893162,84514.0,84513.0,0.00966443]
[1742085638269,0.03076362,84514.0,84513.0,0.00966443]
[1742085641029,0.03076362,84514.0,84513.0,0.0001694]
[1742085643088,0.03076362,84514.0,84513.0,0.00966367]
[1742085644986,0.03076362,84514.0,84513.0,0.0001694]
[1742085650404,0.03076362,84514.0,84513.0,0.00966367]
[1742085659834,0.03076362,84514.0,84513.0,0.0001694]
[1742085668292,0.01893162,84514.0,84513.0,0.0001694]
[1742085668720,0.01893162,84514.0,84513.0,0.00966367]
[1742085676601,0.03076362,84514.0,84513.0,0.00966367]
[1742085676964,0.01893162,84514.0,84513.0,0.00966367]
[1742085686414,0.03076362,84514.0,84513.0,0.00966367]
[1742085690150,0.01221229,84514.0,84513.0,0.00966367]
[1742085693328,0.03076279,84514.0,84513.0,0.00966367]
[1742085693934,0.03076279,84514.0,84513.0,0.0001694]
[1742085697927,0.03076279,84514.0,84513.0,0.00966265]
[1742085701916,0.03076279,84514.0,84513.0,0.0001694]
[1742085704136,0.03076279,84514.0,84513.0,0.00966265]
[1742085710781,0.01893079,84514.0,84513.0,0.00966265]
[1742085724256,0.25557779,84514.0,84513.0,0.00966265]
[1742085724875,0.01893079,84514.0,84513.0,0.00966265]
[1742085734077,0.03076279,84514.0,84513.0,0.00966265]
[1742085734258,0.10996279,84514.0,84513.0,0.00966265]
[1742085734504,0.45876279,84514.0,84513.0,0.0001694]
[1742085763569,0.40996279,84514.0,84513.0,0.0001694]
[1742085776227,0.33076279,84514.0,84513.0,0.0001694]
[1742085816062,0.40726279,84514.0,84513.0,0.0001694]
[1742085820619,0.45686279,84514.0,84513.0,0.0001694]
[1742085821044,0.45686279,84514.0,84513.0,4e-07]
[1742085822526,0.48065564,84514.0,84513.0,4e-07]
[1742085823007,0.48265564,84514.0,84513.0,4e-07]
[1742085823188,0.48365564,84514.0,84513.0,4e-07]
[1742085823402,0.48165564,84514.0,84513.0,4e-07]
[1742085823569,0.48065564,84514.0,84513.0,4e-07]
[1742085823771,0.48265564,84514.0,84513.0,4e-07]
[1742085823973,0.48365564,84514.0,84513.0,4e-07]
[1742085826863,0.60323067,84514.0,84513.0,4e-07]
[1742085829496,0.61777152,84514.0,84513.0,4e-07]
[1742085832875,1.03567152,84514.0,84513.0,4e-07]
[1742085836335,1.03467152,84514.0,84513.0,4e-07]
[1742085836543,1.03567152,84514.0,84513.0,4e-07]
[1742085836738,1.03967152,84514.0,84513.0,4e-07]
[1742085839717,1.17091152,84514.0,84513.0,4e-07]
[1742085840899,0.011836,84485.0,84484.0,0.0578004]
[1742085841095,0.248564,84485.0,84484.0,0.0578004]
[1742085841356,0.248564,84485.0,84484.0,0.0677594]
[1742085841565,0.248564,84485.0,84484.0,0.0578004]
[1742085841732,0.26712026,84485.0,84484.0,0.0578004]
[1742085842650,0.26712026,84485.0,84484.0,0.0598004]
[1742085844053,0.26712026,84485.0,84484.0,0.0628004]
[1742085848377,0.26712026,84485.0,84484.0,0.0629699]
[1742085848604,0.26712026,84485.0,84484.0,0.0051695]
[1742085848754,0.26745926,84485.0,84484.0,0.0051695]
[1742085849385,0.27905352,84485.0,84484.0,0.0051695]
[1742085852406,0.57905352,84485.0,84484.0,0.0051695]
[1742085883859,0.5723202,84485.0,84484.0,0.0051695]
[1742085886068,0.01889526,84485.0,84484.0,0.1414055]
[1742085886271,0.000339,84485.0,84484.0,0.1414055]
[1742085886484,0.000339,84485.0,84484.0,0.15137005]
[1742085886889,0.000339,84485.0,84484.0,0.13953405]
[1742085888202,0.000339,84485.0,84484.0,0.15137005]
[1742085889318,0.000339,84485.0,84484.0,0.17558028]
[1742085889534,0.01889341,84485.0,84484.0,0.17558028]
[1742085893431,0.01889341,84485.0,84484.0,0.17541736]
[1742085894760,0.01889341,84485.0,84484.0,0.17660091]
[1742085896320,0.01889341,84485.0,84484.0,0.17360091]
[1742085896939,0.01889341,84485.0,84484.0,0.17960091]
[1742085897167,0.01889341,84485.0,84484.0,0.17776383]
[1742085897382,0.01889341,84485.0,84484.0,0.18376383]
[1742085900830,0.01889341,84485.0,84484.0,0.18258028]
[1742085903210,0.01889341,84485.0,84484.0,0.93426028]
[1742085916025,0.10702941,84485.0,84484.0,0.77381405]
[1742085916248,0.40036909,84485.0,84484.0,0.77381405]
[1742085916787,0.40036909,84485.0,84484.0,0.76781405]
[1742085917003,0.388475,84485.0,84484.0,0.76781405]
[1742085917200,0.388475,84485.0,84484.0,0.76181405]
[1742085917404,0.388475,84485.0,84484.0,0.76781405]
[1742085918102,0.388475,84485.0,84484.0,0.76981405]
[1742085919161,0.40703123,84485.0,84484.0,0.76381405]
[1742085919443,0.40703123,84485.0,84484.0,0.76581405]
[1742085922407,0.40703123,84485.0,84484.0,0.01413405]
[1742085922784,0.40703123,84485.0,84484.0,0.0041695]
[1742085937321,0.33073123,84485.0,84484.0,0.0041695]
[1742085946510,0.40653123,84485.0,84484.0,0.0041695]
[1742085966226,0.33073123,84485.0,84484.0,0.0041695]
[1742085977333,0.41213123,84485.0,84484.0,0.0041695]
[1742085977715,0.442075,84485.0,84484.0,0.0041695]
[1742085978451,0.442075,84485.0,84484.0,0.0021695]
[1742085978807,0.442075,84485.0,84484.0,0.0041695]
[1742085979004,0.442075,84485.0,84484.0,0.0021695]
[1742085979349,0.442075,84485.0,84484.0,0.0001695]
[1742085979551,0.443075,84485.0,84484.0,0.0001695]
[1742085981869,0.4616335,84485.0,84484.0,0.0001695]
[1742085982055,0.4606335,84485.0,84484.0,0.0001695]
[1742085982599,0.4626335,84485.0,84484.0,0.0001695]
[1742085983299,0.4646335,84485.0,84484.0,0.0001695]
[1742085983501,0.4626335,84485.0,84484.0,0.0001695]
[1742085984218,0.4646335,84485.0,84484.0,0.0001695]
[1742086015561,0.4161335,84485.0,84484.0,0.0001695]
[1742086031296,0.3347335,84485.0,84484.0,0.0001695]
[1742086038878,0.316175,84485.0,84484.0,5e-07]
[1742086039074,0.5486,84473.0,84472.0,0.0001694]
[1742086039341,0.5486,84473.0,84472.0,0.00021089]
[1742086041725,0.56716048,84473.0,84472.0,0.00021089]
[1742086045329,0.57593629,84473.0,84472.0,0.00021089]
[1742086049499,0.69337815,84473.0,84472.0,0.00021089]
[1742086053756,0.57593629,84473.0,84472.0,0.00021089]
[1742086056438,0.02733629,84473.0,84472.0,0.00021089]
[1742086057295,0.03917429,84473.0,84472.0,0.00021089]
[1742086057495,0.57593629,84473.0,84472.0,0.00021089]
[1742086062788,0.59047714,84473.0,84472.0,8.9e-07]
[1742086063051,0.59247714,84473.0,84472.0,8.9e-07]
[1742086063363,0.59147714,84473.0,84472.0,8.9e-07]
[1742086063571,0.59047714,84473.0,84472.0,8.9e-07]
[1742086063774,0.59147714,84473.0,84472.0,8.9e-07]
[1742086064373,0.59047714,84473.0,84472.0,8.9e-07]
[1742086064798,0.59147714,84473.0,84472.0,8.9e-07]
[1742086065560,0.59247714,84473.0,84472.0,8.9e-07]
[1742086065776,0.59147714,84473.0,84472.0,8.9e-07]
[1742086066126,0.32637885,84472.0,84471.0,2.9e-07]
[1742086067429,0.74527885,84472.0,84471.0,2.9e-07]
[1742086067646,0.48533505,84472.0,84471.0,2.9e-07]
[1742086068270,0.49717305,84472.0,84471.0,2.9e-07]
[1742086068649,0.49817305,84472.0,84471.0,2.9e-07]
[1742086069278,0.51673533,84472.0,84471.0,2.9e-07]
[1742086073371,0.88503533,84472.0,84471.0,2.9e-07]
[1742086090969,0.46713533,84472.0,84471.0,0.07870029]
[1742086094192,0.46747433,84472.0,84471.0,0.07870029]
[1742086095770,0.44891205,84472.0,84471.0,0.07870029]
[1742086100084,0.13597114,84472.0,84471.0,0.07870029]
[1742086100286,0.013177,84472.0,84471.0,0.07870029]
[1742086100448,0.03173849,84472.0,84471.0,0.07870029]
[1742086101991,0.33173849,84472.0,84471.0,0.07870029]
[1742086103753,0.33173849,84472.0,84471.0,0.07870029]
[1742086108224,0.06294325,84472.0,84471.0,0.07870029]
[1742086108564,0.25771481,84473.0,84471.0,0.07870029]
[1742086109242,0.011838,84472.0,84471.0,0.07870029]
[1742086110175,0.311838,84472.0,84471.0,0.07870029]
[1742086110604,0.312838,84472.0,84471.0,0.07870029]
[1742086110808,0.313838,84472.0,84471.0,0.07870029]
[1742086111466,0.33239946,84472.0,84471.0,0.07870029]
[1742086115028,0.33239946,84472.0,84471.0,2.9e-07]
[1742086118312,0.33273846,84472.0,84471.0,2.9e-07]
[1742086124629,0.314177,84472.0,84471.0,2.9e-07]
[1742086127439,0.33273824,84472.0,84471.0,2.9e-07]
[1742086135050,0.314177,84472.0,84471.0,2.9e-07]
[1742086145070,0.33273818,84472.0,84471.0,2.9e-07]
[1742086154525,0.0103243,84472.0,84471.0,2.9e-07]
[1742086155283,0.011838,84472.0,84471.0,2.9e-07]
[1742086157885,0.21013298,84472.0,84471.0,2.9e-07]
[1742086158621,0.15959972,84472.0,84471.0,2.9e-07]
[1742086159262,0.141038,84472.0,84471.0,2.9e-07]
[1742086161914,0.45960071,84472.0,84471.0,2.9e-07]
[1742086164903,0.45960071,84472.0,84471.0,2.9e-07]
[1742086165256,0.45993971,84472.0,84471.0,2.9e-07]
[1742086170595,0.41183971,84472.0,84471.0,2.9e-07]
[1742086173890,0.33073971,84472.0,84471.0,2.9e-07]
[1742086181291,0.312177,84472.0,84471.0,2.9e-07]
[1742086183820,0.33073853,84472.0,84471.0,2.9e-07]
[1742086211606,0.03073853,84472.0,84471.0,2.9e-07]
[1742086212602,0.56750253,84472.0,84471.0,2.9e-07]
[1742086220169,0.01890053,84472.0,84471.0,0.04830029]
[1742086220411,0.01890053,84472.0,84471.0,0.25456029]
[1742086220412,0.012177,84472.0,84471.0,0.25456029]
[1742086220766,0.000339,84472.0,84471.0,0.26400923]
[1742086221410,0.001339,84472.0,84471.0,0.26400923]
[1742086221793,0.000339,84472.0,84471.0,0.26400923]
[1742086222539,0.001339,84472.0,84471.0,0.26400923]
[1742086222961,0.000339,84472.0,84471.0,0.26400923]
[1742086223183,0.01889893,84472.0,84471.0,0.26400923]
[1742086223463,0.01889893,84472.0,84471.0,0.26600923]
[1742086224052,0.01889893,84472.0,84471.0,0.26800923]
[1742086226342,0.03073693,84472.0,84471.0,0.26800923]
[1742086229955,0.01889893,84472.0,84471.0,0.26800923]
[1742086231766,0.236756,84475.0,84471.0,0.26800923]
[1742086232090,0.01856004,84472.0,84471.0,0.26800923]
[1742086232290,0.248593,84475.0,84471.0,0.27048903]
[1742086232919,0.248593,84475.0,84471.0,0.26848903]
[1742086233508,0.248593,84475.0,84471.0,0.26648903]
[1742086233903,0.236761,84474.0,84471.0,0.26748903]
[1742086234132,0.236761,84474.0,84471.0,0.26848903]
[1742086234348,0.248593,84475.0,84471.0,0.26848903]
[1742086234849,0.3,84476.0,84471.0,0.26748903]
[1742086235010,0.01855993,84475.0,84471.0,0.26948903]
[1742086235214,0.01855993,84475.0,84471.0,0.26848903]
[1742086235450,0.01855993,84475.0,84471.0,0.26948903]
[1742086235647,0.01855993,84475.0,84471.0,0.26748903]
[1742086235843,0.01855993,84475.0,84471.0,0.50425403]
[1742086236048,0.01855993,84475.0,84471.0,0.50525403]
[1742086236645,0.01855993,84475.0,84472.0,0.236763]
[1742086237073,0.01855993,84475.0,84473.0,0.0119231]
[1742086238032,0.01855993,84475.0,84472.0,0.001]
[1742086238245,0.01855993,84475.0,84474.0,0.01192206]
[1742086238446,0.01855993,84475.0,84473.0,0.0129231]
[1742086238679,0.01855993,84475.0,84474.0,0.01192206]
[1742086239291,0.01855993,84475.0,84474.0,0.14304206]
[1742086240366,0.01855993,84475.0,84474.0,0.14404206]
[1742086240790,0.01855993,84475.0,84474.0,0.14504206]
[1742086249993,0.03039693,84475.0,84474.0,0.14504206]
[1742086253124,0.01855993,84475.0,84474.0,0.14504206]
[1742086254724,0.03039693,84475.0,84474.0,0.14504206]
[1742086254975,0.03039693,84475.0,84474.0,0.13312]
[1742086255119,0.03039693,84475.0,84474.0,0.14504206]
[1742086255625,0.03039693,84475.0,84474.0,0.13312]
[1742086258261,0.03039693,84475.0,84474.0,0.133459]
[1742086263237,0.03039693,84475.0,84474.0,0.14538106]
[1742086265777,0.03039693,84475.0,84474.0,0.133459]
[1742086267226,0.03039693,84475.0,84474.0,0.14538106]
[1742086267664,0.03039693,84475.0,84474.0,0.133459]
[1742086270075,0.03039693,84475.0,84474.0,0.14538106]
[1742086273310,0.01855993,84475.0,84474.0,0.14538106]
[1742086282067,0.03039693,84475.0,84474.0,0.14538106]
[1742086287140,0.01855993,84475.0,84474.0,0.14538106]
[1742086287820,0.01843957,84475.0,84474.0,0.14538106]
[1742086293610,0.03027657,84475.0,84474.0,0.14538106]
[1742086294474,0.03027657,84475.0,84474.0,0.133459]
[1742086295263,0.03027657,84475.0,84474.0,0.14579032]
[1742086298808,0.03027657,84475.0,84474.0,0.133459]
[1742086300157,0.03027657,84475.0,84474.0,0.14579032]
[1742086300589,0.03027657,84475.0,84474.0,0.133459]
[1742086301939,0.03027657,84475.0,84474.0,0.14579032]
[1742086303186,0.03027657,84475.0,84474.0,0.14575032]
[1742086305433,0.03044607,84475.0,84474.0,0.14575032]
[1742086310172,0.01860907,84475.0,84474.0,0.14575032]
[1742086312433,0.0001695,84475.0,84474.0,0.14575032]
[1742086315415,0.01872845,84475.0,84474.0,0.14575032]
[1742086320077,0.01872845,84475.0,84474.0,0.14075032]
[1742086320274,0.01872845,84475.0,84474.0,0.14326405]
[1742086328971,0.01872845,84475.0,84474.0,0.14360305]
[1742086331229,0.00765753,84480.0,84474.0,0.14360305]
[1742086331407,0.236746,84479.0,84474.0,0.14360305]
[1742086331606,0.01855938,84475.0,84474.0,0.14560305]
[1742086331809,0.00765753,84480.0,84474.0,0.38236005]
[1742086332212,0.00765753,84480.0,84474.0,0.38436005]
[1742086333010,0.00765753,84480.0,84474.0,0.38036005]
[1742086333348,0.248582,84479.0,84474.0,0.14460305]
[1742086334242,0.248582,84479.0,84474.0,0.14360305]
[1742086334441,0.26714603,84478.0,84474.0,0.14360305]
[1742086334645,0.26714603,84478.0,84474.0,0.14460305]
[1742086335139,0.03039603,84478.0,84474.0,0.14460305]
[1742086335545,0.03039603,84478.0,84474.0,0.14560305]
[1742086335714,0.03039603,84478.0,84474.0,0.14460305]
[1742086335922,0.26714603,84478.0,84474.0,0.14460305]
[1742086336558,0.26714603,84478.0,84474.0,0.14560305]
[1742086340243,0.24859,84477.0,84474.0,0.14560305]
[1742086340426,0.22789357,84478.0,84474.0,0.14560305]
[1742086340919,0.01855911,84477.0,84474.0,0.14560305]
[1742086341158,0.011837,84475.0,84474.0,0.14460305]
[1742086341477,0.011837,84475.0,84474.0,0.132419]
[1742086341878,0.011837,84475.0,84474.0,0.14360305]
[1742086342363,0.23675,84477.0,84474.0,0.14560305]
[1742086342578,0.092137,84478.0,84474.0,0.14760305]
[1742086342933,0.092137,84478.0,84474.0,0.14560305]
[1742086343362,0.092137,84478.0,84474.0,0.14760305]
[1742086343764,0.03039624,84478.0,84474.0,0.14760305]
[1742086344176,0.03039624,84478.0,84474.0,0.14560305]
[1742086344381,0.23675,84477.0,84474.0,0.14660305]
[1742086345139,0.23675,84477.0,84474.0,0.14460305]
[1742086345341,0.23675,84477.0,84474.0,0.14560305]
[1742086345538,0.23675,84477.0,84474.0,0.14460305]
[1742086345741,0.03039624,84478.0,84474.0,0.14360305]
[1742086345968,0.03039624,84478.0,84474.0,0.14660305]
[1742086346567,0.03039624,84478.0,84474.0,0.14460305]
[1742086346775,0.26714524,84478.0,84474.0,0.14360305]
[1742086346938,0.26714524,84478.0,84474.0,0.14460305]
[1742086348172,0.26714524,84478.0,84474.0,0.14560305]
[1742086348560,0.03039624,84478.0,84474.0,0.14560305]
[1742086348772,0.01855924,84478.0,84474.0,0.38236005]
[1742086351033,0.01855924,84478.0,84475.0,0.236754]
[1742086351220,0.01855924,84478.0,84475.0,0.24893701]
[1742086352368,0.01855924,84478.0,84475.0,0.24993701]
[1742086352720,0.01855924,84478.0,84476.0,0.236751]
[1742086353154,0.01855924,84478.0,84477.0,0.01218093]
[1742086355250,0.01855924,84478.0,84477.0,0.01318093]
[1742086356947,0.01855924,84478.0,84477.0,0.01418093]
[1742086363960,0.01872874,84478.0,84477.0,0.01418093]
[1742086367510,0.0001695,84478.0,84477.0,0.02601793]
[1742086367775,0.0001695,84478.0,84477.0,0.02720153]
[1742086368399,0.0001695,84478.0,84477.0,0.02620153]
[1742086368810,0.0001695,84478.0,84477.0,0.02520153]
[1742086369245,0.0001695,84478.0,84477.0,0.02720153]
[1742086369454,0.0001695,84478.0,84477.0,0.02520153]
[1742086369815,0.0001695,84478.0,84477.0,0.02920153]
[1742086370021,0.0001695,84478.0,84477.0,0.02620153]
[1742086370249,0.0001695,84478.0,84477.0,0.02520153]
[1742086370428,0.0001695,84478.0,84477.0,0.03020153]
[1742086370773,0.0001695,84478.0,84477.0,0.03620153]
[1742086372278,0.0001695,84478.0,84477.0,0.11190153]
[1742086372486,0.0001695,84478.0,84477.0,0.1787422]
[1742086373453,0.0001695,84478.0,84477.0,0.1727422]
[1742086373605,0.0001695,84478.0,84477.0,0.1677422]
[1742086373806,0.0011695,84478.0,84477.0,0.1727422]
[1742086374054,0.0021695,84478.0,84477.0,0.1777422]
[1742086374463,0.0021695,84478.0,84477.0,0.17655878]
[1742086374661,5e-07,84478.0,84477.0,0.29731709]
[1742086374862,5e-07,84478.0,84477.0,0.29613381]
[1742086375442,5e-07,84478.0,84477.0,0.99613381]
[1742086375844,0.0001695,84480.0,84479.0,0.39272285]
[1742086376397,0.0001695,84480.0,84479.0,0.4048965]
[1742086377042,0.0001695,84480.0,84479.0,1.1048965]
[1742086378044,0.0001695,84480.0,84479.0,1.1108965]
[1742086379779,0.0001695,84480.0,84479.0,1.1168965]
[1742086380997,0.0001695,84480.0,84479.0,1.1150065]
[1742086382077,0.00010903,84480.0,84479.0,1.1150065]
[1742086383173,0.00010903,84480.0,84479.0,1.1118965]
[1742086383352,0.00010903,84480.0,84479.0,0.4118965]
[1742086384214,0.00010903,84480.0,84479.0,0.4058965]
[1742086384596,0.00010903,84480.0,84479.0,1.1575365]
[1742086384802,0.00010903,84480.0,84479.0,1.1635365]
[1742086385197,0.00010903,84480.0,84479.0,1.1575365]
[1742086385605,0.00010903,84480.0,84479.0,1.1635365]
[1742086388984,0.00010903,84480.0,84479.0,1.1638755]
[1742086395480,0.00010903,84480.0,84479.0,1.07033465]
[1742086395661,0.00010903,84480.0,84479.0,1.20133465]
[1742086406375,0.00010903,84480.0,84479.0,1.22354619]
[1742086415456,0.00010903,84480.0,84479.0,1.32088704]
[1742086415661,0.00010903,84480.0,84479.0,1.32399704]
[1742086418322,0.00010903,84480.0,84479.0,1.17794619]
[1742086425342,0.00010903,84480.0,84479.0,1.15573465]
[1742086430742,0.07832884,84502.0,84497.0,0.236694]
[1742086430950,0.07837032,84502.0,84498.0,0.14314617]
[1742086431167,0.236685,84501.0,84498.0,0.14314617]
[1742086432151,0.236685,84501.0,84498.0,0.14514617]
[1742086432515,0.236685,84501.0,84498.0,0.14314617]
[1742086432984,0.236685,84501.0,84498.0,0.14514617]
[1742086433179,0.236685,84501.0,84498.0,0.133]
[1742086433408,0.236685,84501.0,84499.0,0.01214122]
[1742086433859,0.312988,84500.0,84498.0,0.135]
[1742086434298,0.312988,84500.0,84498.0,0.133]
[1742086434615,0.133534,84499.0,84498.0,0.133]
[1742086434836,0.133534,84499.0,84498.0,0.131]
[1742086436002,0.133534,84499.0,84498.0,0.133]
[1742086436210,0.133534,84499.0,84498.0,0.131]
[1742086436665,0.133534,84499.0,84498.0,0.136]
[1742086437122,0.133534,84499.0,84498.0,0.133]
[1742086437347,0.1217,84499.0,84498.0,0.136]
[1742086438257,0.133534,84499.0,84498.0,0.136]
[1742086440336,0.133534,84499.0,84498.0,0.005]
[1742086440535,0.135424,84499.0,84498.0,0.005]
[1742086441347,0.435424,84499.0,84498.0,0.005]
[1742086441563,0.435424,84499.0,84498.0,0.002]
[1742086441926,0.372146,84488.0,84487.0,0.131]
[1742086442134,0.372146,84488.0,84487.0,0.14315557]
[1742086442325,0.372146,84488.0,84487.0,0.131]
[1742086443612,0.372146,84488.0,84487.0,0.14315557]
[1742086443825,0.372146,84488.0,84487.0,0.131]
[1742086444294,0.38398435,84488.0,84487.0,0.131]
[1742086444681,0.38398435,84488.0,84487.0,0.135]
[1742086448362,0.38398435,84488.0,84487.0,0.1353388]
[1742086454462,0.38398435,84488.0,84487.0,0.0043388]
[1742086472514,0.38388437,84488.0,84487.0,0.0043388]
[1742086474887,0.09652184,84488.0,84487.0,0.0043388]
[1742086475290,0.10835784,84488.0,84487.0,0.0043388]
[1742086476379,0.40835784,84488.0,84487.0,0.0043388]
[1742086477876,0.40835784,84488.0,84487.0,0.0023388]
[1742086478095,0.53625784,84488.0,84487.0,0.0023388]
[1742086478242,0.53625784,84488.0,84487.0,0.0033388]
[1742086478658,0.53625784,84488.0,84487.0,0.0013388]
[1742086479196,0.53625784,84488.0,84487.0,0.0003388]
[1742086484170,0.53642724,84488.0,84487.0,0.0003388]
[1742086493285,0.40852724,84488.0,84487.0,0.0003388]
[1742086495453,0.26056375,84488.0,84487.0,0.0790388]
[1742086495681,0.26056375,84488.0,84487.0,0.1246388]
[1742086501006,0.01200775,84488.0,84487.0,0.1246388]
[1742086501169,0.01200775,84488.0,84487.0,0.13664314]
[1742086501513,0.02384375,84488.0,84487.0,0.13664314]
[1742086503033,0.0120054,84488.0,84487.0,0.13664314]
[1742086504430,0.02396554,84488.0,84487.0,0.13664314]
[1742086505125,0.0120054,84488.0,84487.0,0.13664314]
[1742086506516,0.02377006,84488.0,84487.0,0.13664314]
[1742086507248,0.0120054,84488.0,84487.0,0.13664314]
[1742086509232,0.02398407,84488.0,84487.0,0.13664314]
[1742086511887,0.01214807,84488.0,84487.0,0.13664314]
[1742086514727,0.0001694,84488.0,84487.0,0.13664314]
[1742086523253,0.236692,84498.0,84489.0,0.236714]
[1742086523609,0.248533,84496.0,84491.0,0.236711]
[1742086523916,0.248533,84496.0,84492.0,0.01199796]
[1742086523917,0.236702,84495.0,84492.0,0.01199796]
[1742086524276,0.236702,84495.0,84490.0,0.236712]
[1742086524476,0.236702,84495.0,84493.0,0.01199692]
[1742086524700,0.236702,84495.0,84490.0,0.236712]
[1742086524903,0.236702,84495.0,84494.0,0.01199588]
[1742086525105,0.24854,84494.0,84489.0,0.236714]
[1742086525642,0.24854,84494.0,84490.0,0.01200005]
[1742086526055,0.24854,84494.0,84489.0,0.236714]
[1742086526249,0.24854,84494.0,84491.0,0.01199901]
[1742086526458,0.24854,84494.0,84490.0,0.01200005]
[1742086526663,0.24854,84494.0,84492.0,0.01199796]
[1742086526859,0.24854,84494.0,84491.0,0.01199901]
[1742086527085,0.24854,84494.0,84493.0,0.01199692]
[1742086527314,0.24854,84494.0,84492.0,0.01199796]
[1742086527588,0.24854,84494.0,84493.0,0.01199692]
[1742086527942,0.24854,84494.0,84489.0,0.236714]
[1742086528147,0.24854,84494.0,84493.0,0.01199692]
[1742086528408,0.24854,84494.0,84489.0,0.236714]
[1742086528852,0.24854,84494.0,84490.0,0.01200089]
[1742086529244,0.24854,84494.0,84489.0,0.236714]
[1742086529465,0.24854,84494.0,84491.0,0.01199985]
[1742086529596,0.3,84493.0,84490.0,0.01200089]
[1742086529841,0.3,84493.0,84489.0,0.236714]
[1742086530029,0.3,84493.0,84491.0,0.01199985]
[1742086530229,0.3,84493.0,84489.0,0.236714]
[1742086530428,0.3,84493.0,84490.0,0.01200089]
[1742086530694,0.3,84493.0,84489.0,0.236714]
[1742086530894,0.3,84493.0,84491.0,0.01199985]
[1742086531096,0.3,84493.0,84490.0,0.01200089]
[1742086531296,0.3,84493.0,84492.0,0.0119988]
[1742086531503,0.548543,84492.0,84491.0,0.01199985]
[1742086531710,0.248556,84488.0,84487.0,0.2556388]
[1742086533065,0.248551,84490.0,84487.0,0.2556388]
[1742086533274,0.248554,84489.0,84487.0,0.2556388]
[1742086533669,0.011836,84488.0,84487.0,0.1313388]
[1742086535417,0.011836,84488.0,84487.0,0.14334281]
[1742086538319,0.011836,84488.0,84487.0,0.01234281]
[1742086543826,0.311836,84488.0,84487.0,0.01234281]
[1742086568862,0.31177517,84488.0,84487.0,0.01234281]
[1742086582584,0.50041834,84488.0,84487.0,0.01234281]
[1742086582807,0.39347517,84488.0,84487.0,0.0003388]
[1742086583006,0.81137517,84488.0,84487.0,0.0003388]
[1742086583859,0.82591602,84488.0,84487.0,0.0003388]
[1742086586186,0.548579,84480.0,84479.0,0.000339]
[1742086589493,0.57073687,84480.0,84479.0,0.000339]
[1742086596770,0.548579,84480.0,84479.0,0.000339]
[1742086597022,0.53675,84477.0,84474.0,1e-06]
[1742086597229,0.548652,84455.0,84452.0,0.0752]
[1742086597844,0.548652,84455.0,84454.0,0.06134018]
[1742086598064,0.548652,84455.0,84454.0,0.0493]
[1742086598714,0.548652,84455.0,84454.0,0.04934141]
[1742086600991,0.56366325,84455.0,84454.0,0.04934141]
[1742086602350,0.56366325,84455.0,84454.0,0.04951091]
[1742086608538,1.10113828,84455.0,84454.0,9.1e-07]
[1742086608744,1.11567913,84455.0,84454.0,9.1e-07]
[1742086609340,0.9961041,84455.0,84454.0,9.1e-07]
[1742086610382,1.02708839,84455.0,84454.0,9.1e-07]
[1742086611424,0.9961041,84455.0,84454.0,9.1e-07]
[1742086619521,0.74630438,84455.0,84454.0,9.1e-07]
[1742086620301,0.75814438,84455.0,84454.0,9.1e-07]
[1742086620493,0.99495638,84455.0,84454.0,9.1e-07]
[1742086623271,1.01707708,84455.0,84454.0,9.1e-07]
[1742086624349,1.01707708,84455.0,84433.0,0.0782]
[1742086624350,0.011843,84434.0,84433.0,0.0782]
[1742086624556,0.548714,84434.0,84433.0,0.07824149]
[1742086624767,0.548714,84434.0,84433.0,0.09307561]
[1742086624972,0.548714,84434.0,84433.0,0.07824149]
[1742086625971,0.5708347,84434.0,84433.0,0.07824149]
[1742086627241,0.5708347,84434.0,84433.0,0.07841099]
[1742086629831,0.5708347,84434.0,84433.0,0.12591099]
[1742086633946,0.3221207,84434.0,84433.0,0.12591099]
[1742086634164,0.3221207,84434.0,84433.0,0.14074452]
[1742086635522,0.0221207,84434.0,84433.0,0.14074452]
[1742086637668,0.548693,84442.0,84435.0,0.0802]
[1742086637952,0.536851,84442.0,84437.0,0.0802]
[1742086638144,0.011842,84443.0,84438.0,0.236858]
[1742086638322,0.011842,84443.0,84439.0,0.0802]
[1742086638724,0.011842,84443.0,84441.0,0.0802]
[1742086639126,0.011842,84443.0,84442.0,0.01482089]
[1742086639354,0.3,84445.0,84442.0,0.01482089]
[1742086639540,0.311841,84446.0,84442.0,0.01482089]
[1742086640365,0.548681,84446.0,84442.0,0.01482089]
[1742086643109,0.3,84443.0,84442.0,0.01482089]
[1742086644684,0.311842,84443.0,84442.0,0.01482089]
[1742086652506,0.54869,84442.0,84441.0,0.0802]
[1742086652913,0.54869,84442.0,84441.0,0.09502112]
[1742086653949,0.011842,84443.0,84441.0,0.09502112]
[1742086654378,0.24869,84442.0,84441.0,0.09502112]
[1742086656053,0.24864913,84442.0,84441.0,0.09502112]
[1742086659646,0.236848,84442.0,84441.0,0.09502112]
[1742086659854,0.011842,84443.0,84441.0,0.09502112]
[1742086660060,0.248686,84444.0,84441.0,0.09502112]
[1742086660474,0.011842,84444.0,84441.0,0.09502112]
[1742086660665,0.311842,84445.0,84441.0,0.09502112]
[1742086661085,0.02219478,84443.0,84441.0,0.09502112]
[1742086661290,0.02219478,84443.0,84442.0,0.236848]
[1742086661703,0.02219478,84443.0,84442.0,0.25179305]
[1742086661910,0.02219478,84443.0,84442.0,0.01494505]
[1742086665897,0.03403678,84443.0,84442.0,0.01494505]
[1742086666331,0.03403678,84443.0,84441.0,0.0001695]
[1742086666332,0.24869,84442.0,84441.0,0.0001695]
[1742086666759,0.24869,84442.0,84441.0,0.01203663]
[1742086676442,0.249029,84442.0,84441.0,0.01203663]
[1742086678737,0.000339,84442.0,84441.0,0.01203663]